Workbook

Sheet Inputs
A11: Roma Brisbane Pipeline
A12: Reference Tariff Model
A14: Item | B14: Dollars | C14: FY2023 | D14: FY2024 | E14: FY2025 | F14: FY2026 | G14: FY2027
A17: Building Block Revenue
A19: Building Block Revenue from PTRM | B19: Forecast Nom | C19: 42.71567142 | D19: 45.71467587 | E19: 48.68233185 | F19: 50.85876179 | G19: 48.77354111 | Q19: =Q22-38 -> -38
A21: Demand | P21: 2022-23 | Q21: 2023-24 | R21: 2024-25 | S21: 2025-26 | T21: 2026-27
O22: Eastbound (non GPG)
A23: Eastbound C&I | B23: TJ MDQ/Day | O23: GPG
A24: GPG | B24: TJ MDQ/Day | O24: Total Eastbound | P24: 135.3 | Q24: 114.8 | R24: 113.3 | S24: 113.3 | T24: 113.3
A25: Prudent Discount | B25: TJ MDQ/Day | C25: 0 | D25: =C25 -> 0 | E25: 0 | F25: 0 | G25: 0 | O25: Westbound | P25: 93.7 | Q25: 93.7 | R25: 92.7 | S25: 87.7 | T25: 87.7
A26: Prudent Discount Volumes | B26: GJ | C26: 0 | D26: =C26 -> 0 | E26: 0 | F26: 0 | G26: 0 | O26: Total | P26: =SUM(P24:P25) -> 229 | Q26: =SUM(Q24:Q25) -> 208.5 | R26: 206 | S26: 201 | T26: 201
A27: Westbound | B27: TJ MDQ/Day
A28: Competitive Westbound | B28: TJ MDQ/Day
A29: Total Westbound | B29: TJ MDQ/Day | C29: =P25 -> 93.7 | D29: =Q25 -> 93.7 | E29: 92.7 | F29: 87.7 | G29: 87.7
A31: Set Prices
A33: Westbound | B33: $/GJ MDQ/Day | O33: Darling Downs | P33: 2020-21
A34: Prudent Discount | B34: $/GJ MDQ/Day | C34: 0 | D34: =C34 -> 0 | E34: 0 | F34: 0 | G34: 0 | O34: DDP 134 | P34: 0.2195
A35: Prudent Discount | B35: $/GJ | C35: 0 | D35: =C35 -> 0 | E35: 0 | F35: 0 | G35: 0 | O35: DDP 133 | P35: 0.1004
A37: Other inputs | C37: FY2022
A39: CPI | C39: 0.02249847188
A40: $FY22 index | C40: =1*(1+C39) -> 1.022498472 | D40: =C40*(1+FY22Inf) -> 1.045503125 | E40: =D40*(1+FY22Inf) -> 1.069025348 | F40: =E40*(1+FY22Inf) -> 1.093076784 | G40: =F40*(1+FY22Inf) -> 1.117669342
A42: WACC | B42: nominal vanilla | C42: 0.04331650335
A44: Days in Year | B44: days | C44: 365 | D44: 366 | E44: 365 | F44: 365 | G44: 365
A46: Terajoule | B46: GJ | C46: 1000 | D46: 1000 | E46: 1000 | F46: 1000 | G46: 1000
A48: FY 2022 Forecast Revenue | B48: $FY22 | C48: 42.3546
A50: Reference tariff | B50: $FY22 | C50: 0.58019201
A52: Real Revenue from PTRM | B52: $FY22 | C52: 49.08138482 | D52: 44.5815511 | E52: 43.74718701 | F52: 41.87522288 | G52: 41.42270154

Sheet Calculations
A11: Roma Brisbane Pipeline
A12: Reference Tariff Model
A14: Item | B14: Dollars | C14: FY2023 | D14: FY2024 | E14: FY2025 | F14: FY2026 | G14: FY2027 | I14: NPV
A16: Building Block Revenue | B16: =Inputs!B19 -> Forecast Nom | C16: =Inputs!C19 -> 42.71567142 | D16: =Inputs!D19 -> 45.71467587 | E16: =Inputs!E19 -> 48.68233185 | F16: =Inputs!F19 -> 50.85876179 | G16: =Inputs!G19 -> 48.77354111 | I16: =NPV(WACC,C16,D16,E16,F16,G16) -> 208.1860042
A18: Total Volumes | B18: GJ MDQ/year | C18: 80263500 | D18: 72980400 | E18: 71868500 | F18: 70043500 | G18: 70043500
A19: Smoothed Revenue | C19: =C18*C20/1000000 -> 49.61612506 | D19: =D18*D20/1000000 -> 46.1289593 | E19: 46.44817616 | F19: 46.28716606 | G19: 47.32855656 | I19: =NPV(WACC,C19,D19,E19,F19,G19) -> 208.1860042
A20: Reference tariff | C20: =FY22RefTariff*(1-C21/100)*(1+FY22Inf) -> 0.6181654807 | D20: =C20*(1-D21/100)*(1+FY22Inf) -> 0.6320732594 | E20: =D20*(1-E21/100)*(1+FY22Inf) -> 0.6462939418 | F20: =E20*(1-F21/100)*(1+FY22Inf) -> 0.6608345679 | G20: =F20*(1-G21/100)*(1+FY22Inf) -> 0.6757023359
A21: "Vanilla" X factor | C21: -4.200628492 | D21: 0 | E21: =D21 -> 0 | F21: 0 | G21: 0 | I21: =I16-I19 -> 0
C23: =C16-C19 -> -6.900453639
A25: Eastbound
A26: EastBound Volumes | B26: GJ MDQ/year | C26: 46063000 | D26: 38686200 | E26: 38033000 | F26: 38033000 | G26: 38033000
A27: Eastbound Revenues | C27: =C20*C26/1000000 -> 28.47455654 | D27: =D20*D26/1000000 -> 24.45251253 | E27: =E20*E26/1000000 -> 24.58049749 | F27: =F20*F26/1000000 -> 25.13352112 | G27: =G20*G26/1000000 -> 25.69898694 | I27: =NPV(WACC,C27,D27,E27,F27,G27) -> 113.4022703
A29: Eastbound Prudent Discount
A30: Prudent Discount Firm Demand | B30: =B18 -> GJ MDQ/year | C30: =Inputs!C25*Inputs!C44*Inputs!C46 -> 0 | D30: =Inputs!D25*Inputs!D44*Inputs!D46 -> 0 | E30: =Inputs!E25*Inputs!E44*Inputs!E46 -> 0 | F30: =Inputs!F25*Inputs!F44*Inputs!F46 -> 0 | G30: =Inputs!G25*Inputs!G44*Inputs!G46 -> 0
A31: Prudent Discount Volume Revenue | B31: =Inputs!B26 -> GJ | C31: =Inputs!C26 -> 0 | D31: =Inputs!D26 -> 0 | E31: =Inputs!E26 -> 0 | F31: =Inputs!F26 -> 0 | G31: =Inputs!G26 -> 0
A33: Prudent Discount Firm Tariff | B33: =Inputs!B34 -> $/GJ MDQ/Day | C33: =Inputs!C34 -> 0 | D33: =Inputs!D34 -> 0 | E33: =Inputs!E34 -> 0 | F33: =Inputs!F34 -> 0 | G33: =Inputs!G34 -> 0
A34: Prudent Discount Volume tariff | B34: =Inputs!B35 -> $/GJ | C34: =Inputs!C35 -> 0 | D34: =Inputs!D35 -> 0 | E34: =Inputs!E35 -> 0 | F34: =Inputs!F35 -> 0 | G34: =Inputs!G35 -> 0
A36: Prudent Discount Revenue | B36: $m | C36: =(C30*C33+C31*C34)/1000000 -> 0 | D36: =(D30*D33+D31*D34)/1000000 -> 0 | E36: 0 | F36: 0 | G36: 0 | I36: =NPV(WACC,C36,D36,E36,F36,G36) -> 0
A38: Eastbound Reference Tariff
A39: Reference Revenue Eastbound | B39: =B36 -> $m | C39: =C27-C36 -> 28.47455654 | D39: =D27-D36 -> 24.45251253 | E39: =E27-E36 -> 24.58049749 | F39: =F27-F36 -> 25.13352112 | G39: =G27-G36 -> 25.69898694 | I39: =NPV(WACC,C39,D39,E39,F39,G39) -> 113.4022703
A40: Non Discount Demand | B40: =B30 -> GJ MDQ/year | C40: 46063000 | D40: 38686200 | E40: 38033000 | F40: 38033000 | G40: 38033000
A41: Eastbound smoothed reference service | B41: =B39 -> $m | C41: 28.47455654 | D41: 24.45251253 | E41: 24.58049749 | F41: 25.13352112 | G41: 25.69898694 | I41: =NPV(WACC,C41,D41,E41,F41,G41) -> 113.4022703
A42: Eastbound reference tariff | C42: =FY22RefTariff*(1-C45/100)*(1+FY22Inf) -> 0.6181654807 | D42: =C42*(1-D45/100)*(1+FY22Inf) -> 0.6320732594 | E42: =D42*(1-E45/100)*(1+FY22Inf) -> 0.6462939418 | F42: =E42*(1-F45/100)*(1+FY22Inf) -> 0.6608345679 | G42: =F42*(1-G45/100)*(1+FY22Inf) -> 0.6757023359
C44: P0 | D44: X1 | E44: X2 | F44: X3 | G44: X4
A45: Eastbound X factor | C45: -4.200628492 | D45: 0 | E45: =D45 -> 0 | F45: 0 | G45: 0 | I45: =I39-I41 -> 0
A47: Residual in year 1 | C47: =C27-C41-C36 -> 7.105427358e-15 | D47: =D27-D41-D36 -> 3.552713679e-15 | E47: 7.105427358e-15 | F47: 3.552713679e-15 | G47: 7.105427358e-15
A51: Westbound
A52: WestBound Volumes | B52: GJ MDQ/year | C52: =Inputs!C29*Inputs!C44*Inputs!C46 -> 34200500 | D52: =Inputs!D29*Inputs!D44*Inputs!D46 -> 34294200 | E52: =Inputs!E29*Inputs!E44*Inputs!E46 -> 33835500 | F52: =Inputs!F29*Inputs!F44*Inputs!F46 -> 32010500 | G52: =Inputs!G29*Inputs!G44*Inputs!G46 -> 32010500
A53: Westbound Revenues | C53: =C52*C20/1000000 -> 21.14156852 | D53: =D52*D20/1000000 -> 21.67644677 | E53: =E52*E20/1000000 -> 21.86767867 | F53: =F52*F20/1000000 -> 21.15364494 | G53: =G52*G20/1000000 -> 21.62956962 | I53: =NPV(WACC,C53,D53,E53,F53,G53) -> 94.78373386
A55: Westbound Prudent Discount
A56: =Inputs!A34 -> Prudent Discount | B56: =Inputs!B34 -> $/GJ MDQ/Day
A57: Prudent Discount Firm Demand | B57: =B30 -> GJ MDQ/year
A58: Prudent Discount Revenue | B58: $m
A60: Westbound Reference Tariff
A61: Remaining Building Block Revenue | B61: =B58 -> $m
A62: Non Discount Demand | B62: GJ MDQ/year
A63: Westbound Revenue | B63: =B58 -> $m
A64: Westbound Reference Tariff | B64: $/GJ MDQ/Day | C64: 0.6378076406 | D64: 0.6521573378 | E64: 0.6668298814 | F64: 0.6818325347 | G64: 0.6971727248 | I64: 0.0001135228376
C66: P0 | D66: X1 | E66: X2 | F66: X3 | G66: X4
A67: Westbound X factors | C67: -7.511595322 | D67: 0 | E67: =D67 -> 0 | F67: 0 | G67: 0
A69: Residual in year 1 | C69: -0.5695159119 | D69: -0.4811916897 | E69: -0.3186756473 | F69: 0.5143320881 | G69: 1.031673006
A72: Proof
A73: Smoothed | B73: =B63 -> $m | C73: 50.18564097 | D73: 46.61015099 | E73: 46.76685181 | F73: 45.77283397 | G73: 46.29688356 | I73: =NPV(WACC,C73,D73,E73,F73,G73) -> 208.1858907
A74: =A16 -> Building Block Revenue | B74: Forecast Nom | C74: 42.71567142 | D74: 45.71467587 | E74: 48.68233185 | F74: 50.85876179 | G74: 48.77354111 | I74: =NPV(WACC,C74,D74,E74,F74,G74) -> 208.1860042
I75: =I73-I74 -> -0.0001135228377

Sheet Outputs
B1: X Factors
B2: Reference Service | C2: =Calculations!C66 -> P0 | D2: =Calculations!D66 -> X1 | E2: =Calculations!E66 -> X2 | F2: =Calculations!F66 -> X3 | G2: =Calculations!G66 -> X4
B3: =Calculations!A45 -> Eastbound X factor | C3: =Calculations!C45 -> -4.200628492 | D3: =Calculations!D45 -> 0 | E3: =Calculations!E45 -> 0 | F3: =Calculations!F45 -> 0 | G3: =Calculations!G45 -> 0
B4: =Calculations!A67 -> Westbound X factors | C4: =Calculations!C67 -> -7.511595322 | D4: =Calculations!D67 -> 0 | E4: =Calculations!E67 -> 0 | F4: =Calculations!F67 -> 0 | G4: =Calculations!G67 -> 0
B6: Forecast Reference Tariff (Nominal)
B7: Service | C7: FY23 | D7: FY24 | E7: FY25 | F7: FY26 | G7: FY27
B8: Eastbound Long Term Firm Service | C8: =ROUND(Calculations!C42,4) -> 0.6182 | D8: =ROUND(Calculations!D42,4) -> 0.6321 | E8: =ROUND(Calculations!E42,4) -> 0.6463 | F8: =ROUND(Calculations!F42,4) -> 0.6608 | G8: =ROUND(Calculations!G42,4) -> 0.6757
B9: Westbound Long Term Firm Service | C9: 0.6378 | D9: 0.6522 | E9: 0.6668 | F9: 0.6818 | G9: 0.6972
B11: Forecast Reference Tariff (Real)
B12: Service | C12: FY23 | D12: FY24 | E12: FY25 | F12: FY26 | G12: FY27
B13: Eastbound Long Term Firm Service | C13: =ROUND(C8/Inputs!C$40,4) -> 0.6046 | D13: =ROUND(D8/Inputs!D$40,4) -> 0.6046 | E13: =ROUND(E8/Inputs!E$40,4) -> 0.6046 | F13: =ROUND(F8/Inputs!F$40,4) -> 0.6045 | G13: =ROUND(G8/Inputs!G$40,4) -> 0.6046
B14: Westbound Long Term Firm Service | C14: =ROUND(C9/Inputs!C$40,4) -> 0.6238 | D14: =ROUND(D9/Inputs!D$40,4) -> 0.6238 | E14: =ROUND(E9/Inputs!E$40,4) -> 0.6237 | F14: =ROUND(F9/Inputs!F$40,4) -> 0.6237 | G14: =ROUND(G9/Inputs!G$40,4) -> 0.6238
B17: Demand (Confidential) | J17: Demand (Public)
B19: Component (TJ MDW/Day) | C19: FY23 | D19: FY24 | E19: FY25 | F19: FY26 | G19: FY27 | J19: Component | K19: FY23 | L19: FY24 | M19: FY25 | N19: FY26 | O19: FY27
B20: =Inputs!A27 -> Westbound | J20: =B20 -> Westbound | K20: 93.7 | L20: 93.7 | M20: 92.7 | N20: 87.7 | O20: 87.7
B21: =Inputs!A28 -> Competitive Westbound | J21: =B24 -> Eastbound | K21: 126.2 | L21: 105.7 | M21: 104.2 | N21: 104.2 | O21: 104.2
B22: GPG | J22: =B25 -> Total | K22: =SUM(K20:K21) -> 219.9 | L22: =SUM(L20:L21) -> 199.4 | M22: =SUM(M20:M21) -> 196.9 | N22: =SUM(N20:N21) -> 191.9 | O22: =SUM(O20:O21) -> 191.9
B23: =Inputs!A25 -> Prudent Discount
B24: Eastbound | J24: Demand (Public)
B25: Total | C25: 219.9 | D25: 199.4 | E25: 196.9 | F25: 191.9 | G25: 191.9
J26: Component | K26: FY23 | L26: FY24 | M26: FY25 | N26: FY26 | O26: FY27
J27: =J21 -> Eastbound | K27: =K21 -> 126.2 | L27: =L21 -> 105.7 | M27: 104.2 | N27: 104.2 | O27: 104.2
B28: Revenue | D28: FY23 | E28: FY24 | F28: FY25 | G28: FY26 | H28: FY27
B29: Eastbound Prudent Discount Revenue | C29: =Calculations!B36 -> $m | D29: =Calculations!C36 -> 0 | E29: =Calculations!D36 -> 0 | F29: =Calculations!E36 -> 0 | G29: =Calculations!F36 -> 0 | H29: =Calculations!G36 -> 0
B30: =Calculations!A41 -> Eastbound smoothed reference service | C30: =Calculations!B41 -> $m | D30: =Calculations!C41 -> 28.47455654 | E30: =Calculations!D41 -> 24.45251253 | F30: =Calculations!E41 -> 24.58049749 | G30: =Calculations!F41 -> 25.13352112 | H30: =Calculations!G41 -> 25.69898694
B31: Westbound Prudent Discount Revenue | C31: =Calculations!B58 -> $m
B32: =Calculations!A63 -> Westbound Revenue | C32: =Calculations!B63 -> $m
B33: Total "smoothed" Revenue | C33: $m | D33: 50.18564097 | E33: 46.61015099 | F33: 46.76685181 | G33: 45.77283397 | H33: 46.29688356
B35: Eastbound Reference Tariff | C35: $GJ MDQ | D35: 0.6181654807 | E35: 0.6320732594 | F35: 0.6462939418 | G35: 0.6608345679 | H35: 0.6757023359
B36: GPG Volumes | C36: GJ MDQ PA
B37: GPG Revenue
B39: Other East bound Revenue | C39: $m | D39: 21.70564452 | E39: 17.51234814 | F39: 17.50357883 | G39: 17.8973826 | H39: 18.30004636
B41: Westbound Revenue | C41: $m | D41: 21.71108443 | E41: 22.15763846 | F41: 22.18635432 | G41: 20.63931285 | H41: 20.59789662
B43: Total Revenue | D43: 50.18564097 | E43: 46.61015099 | F43: 46.76685181 | G43: 45.77283397 | H43: 46.29688356
B46: Real Revenue ($FY22)
B48: Revenue | D48: =D28 -> FY23 | E48: =E28 -> FY24 | F48: FY25 | G48: FY26 | H48: FY27
B49: Revenue | D49: 49081384.82 | E49: 44581551.1 | F49: 43747187.01 | G49: 41875222.88 | H49: 41422701.54
B51: RIN Total | D51: 41535152.48 | E51: 42145631.83 | F51: 42010595.99 | G51: 43847765.26 | H51: 47202597.74
D53: =D49-D51 -> 7546232.338 | E53: =E49-E51 -> 2435919.27 | F53: 1736591.022 | G53: -1972542.377 | H53: -5779896.205

Sheet Proof Prudent Discount
C2: =Outputs!C7 -> FY23 | D2: =Outputs!D7 -> FY24 | E2: =Outputs!E7 -> FY25 | F2: =Outputs!F7 -> FY26 | G2: =Outputs!G7 -> FY27 | H2: NPV
B3: East bound Revenue | C3: =Calculations!C27 -> 28.47455654 | D3: =Calculations!D27 -> 24.45251253 | E3: =Calculations!E27 -> 24.58049749 | F3: =Calculations!F27 -> 25.13352112 | G3: =Calculations!G27 -> 25.69898694 | H3: 113.4022703
B4: Westbound Revenue | C4: =Calculations!C53 -> 21.14156852 | D4: =Calculations!D53 -> 21.67644677 | E4: =Calculations!E53 -> 21.86767867 | F4: =Calculations!F53 -> 21.15364494 | G4: =Calculations!G53 -> 21.62956962 | H4: 94.78373386
B6: Eastbound Demand without Prudent volumes | C6: 46063000 | D6: 38686200 | E6: 38033000 | F6: 38033000 | G6: 38033000
B7: Westbound Demand without Prudent volumes | C7: 26900500 | D7: 26974200 | E7: 26535500 | F7: 24710500 | G7: 24710500
B9: Eastbound prudent Discount Proof
B10: Volumes less prudent discount | C10: =C6 -> 46063000 | D10: =D6 -> 38686200 | E10: 38033000 | F10: 38033000 | G10: 38033000
B11: Revenue | C11: =C10*C12/1000000 -> 28.47455654 | D11: =D10*D12/1000000 -> 24.45251253 | E11: =E10*E12/1000000 -> 24.58049749 | F11: 25.13352112 | G11: 25.69898694 | H11: 113.4022703
B12: Reference Tariff | C12: 0.6181654807 | D12: 0.6320732594 | E12: 0.6462939418 | F12: 0.6608345679 | G12: 0.6757023359 | H12: =H3-H11 -> 0
B13: X factor | C13: -0.04200628492 | D13: 0 | E13: =D13 -> 0 | F13: =E13 -> 0 | G13: 0
B15: Proposed Eastbound Long Term Firm Charge | C15: =Outputs!C8 -> 0.6182 | D15: =Outputs!D8 -> 0.6321 | E15: =Outputs!E8 -> 0.6463 | F15: =Outputs!F8 -> 0.6608 | G15: =Outputs!G8 -> 0.6757
B16: Difference | C16: =C12-C15 -> -3.451929057e-05 | D16: =D12-D15 -> -2.67406057e-05 | E16: -6.05815318e-06 | F16: 3.456792361e-05 | G16: 2.335867305e-06 | H16: -3.192239262e-05
B18: Westbound prudent Discount Proof
B19: Volumes less prudent discount
B20: Revenue
B21: Reference Tariff
B22: X factor
B24: Proposed Eastbound Long Term Firm Charge | C24: 0.6378 | D24: 0.6522 | E24: 0.6668 | F24: 0.6818 | G24: 0.6972 | H24: Total
B25: Difference
